bitfinex-derivatives/quotes_BTCF0:USTF0_20210105
["timestamp","ask_amount","ask_price","bid_price","bid_amount"]
[1609855393392,0.0946,31309.0,31290.0,0.12686]
[1609855393593,0.13632608,31291.0,31290.0,0.12686]
[1609855394397,0.13632608,31291.0,31290.0,0.08966]
[1609855394594,0.13632608,31291.0,31264.0,0.2862]
[1609855395394,0.13632608,31291.0,31273.0,0.12712]
[1609855395595,0.12917,31301.0,31288.0,0.13632608]
[1609855396196,0.6405,31298.0,31288.0,0.13632608]
[1609855396396,4.0085,31289.0,31273.0,0.12712]
[1609855396598,0.09889,31291.0,31273.0,0.12712]
[1609855396796,3.7696,31274.0,31273.0,0.12712]
[1609855396996,3.7696,31274.0,31273.0,2e-05]
[1609855397397,3.7696,31274.0,31233.0,0.2797]
[1609855397597,0.13632608,31255.0,31248.0,0.13632608]
[1609855397798,4.9633,31257.0,31248.0,0.13632608]
[1609855397997,4.9633,31257.0,31233.0,0.2797]
[1609855398198,4.9633,31257.0,31232.0,2.09319824]
[1609855398599,0.12178,31267.0,31250.0,1.221e-05]
[1609855398998,0.0956,31266.0,31243.0,6.221e-05]
[1609855399200,0.0956,31266.0,31240.0,0.0969]
[1609855399201,3.9961,31241.0,31236.0,0.12786]
[1609855399398,3.9961,31241.0,31215.0,0.2953]
[1609855399598,0.13632608,31216.0,31215.0,0.2953]
[1609855400000,0.13632608,31216.0,31211.0,0.13632608]
[1609855400399,0.0948,31215.0,31211.0,0.13632608]
[1609855400798,4.2349,31207.0,31193.0,2.0888148]
[1609855401598,0.13632608,31206.0,31203.0,0.13632608]
[1609855402001,0.11968,31221.0,31203.0,0.13632608]
[1609855402601,4.788,31226.0,31203.0,0.13632608]
[1609855403002,5.5586,31251.0,31203.0,0.13632608]
[1609855403501,5.5586,31251.0,31203.0,0.68252608]
[1609855403702,5.5586,31251.0,31203.0,0.5462]
[1609855404103,5.2694,31251.0,31203.0,0.5462]
[1609855404303,0.58401732,31262.0,31200.0,0.13879]
[1609855404502,0.48941732,31262.0,31205.0,4.8374]
[1609855404703,0.2937,31261.0,31205.0,4.8374]
[1609855404903,0.48941732,31262.0,31205.0,4.8374]
[1609855405702,0.48941732,31262.0,31244.0,0.13632608]
[1609855405903,0.58451732,31262.0,31244.0,0.13632608]
[1609855406104,0.48941732,31262.0,31244.0,0.13632608]
[1609855407703,0.48941732,31262.0,31261.0,0.13632608]
[1609855408305,0.58726817,31263.0,31261.0,0.13632608]
[1609855409412,0.58726817,31263.0,31249.0,0.11178]
[1609855409609,0.13632608,31259.0,31254.0,0.13632608]
[1609855409810,0.13632608,31259.0,31249.0,0.11178]
[1609855410010,0.58726817,31263.0,31249.0,0.11178]
[1609855410810,0.58726817,31263.0,31241.0,0.09465]
[1609855411210,0.09375,31264.0,31234.0,0.14775]
[1609855411412,0.09375,31264.0,31184.0,2.06635053]
[1609855411611,0.09375,31264.0,31230.0,0.14598]
[1609855412013,0.09375,31264.0,31230.0,0.04928]
[1609855412813,0.09375,31264.0,31207.0,0.2716]
[1609855413713,0.09375,31264.0,31226.0,0.13632608]
[1609855414714,5.2931,31272.0,31226.0,0.13632608]
[1609855415613,5.2931,31272.0,31217.0,0.14347]
[1609855415914,5.42683,31272.0,31217.0,0.14347]
[1609855417618,0.13632608,31218.0,31217.0,0.13632608]
[1609855417817,0.13632608,31218.0,31209.0,0.14367]
[1609855418719,0.10669,31227.0,31209.0,0.14367]
[1609855418917,0.10669,31227.0,31207.0,0.2716]
[1609855419117,0.10669,31227.0,31209.0,0.13682]
[1609855419718,0.13632608,31210.0,31209.0,0.13682]
[1609855420118,0.13632608,31210.0,31209.0,0.09572]
[1609855420318,0.13632608,31210.0,31187.0,0.282]
[1609855420719,0.13632608,31210.0,31171.0,4.6922]
[1609855421119,0.81492608,31210.0,31171.0,4.6922]
[1609855421320,0.13632608,31210.0,31160.0,0.2927]
[1609855421520,4.8048,31208.0,31160.0,0.2927]
[1609855421721,4.8048,31208.0,31163.0,0.13632608]
[1609855421923,4.8048,31208.0,31163.0,0.26579608]
[1609855423623,4.8048,31208.0,31185.0,0.13632608]
[1609855423823,0.09393,31211.0,31163.0,0.12947]
[1609855424023,0.09393,31211.0,31168.0,4.4544]
[1609855424222,0.09393,31211.0,31168.0,3.4544]
[1609855425024,0.09393,31211.0,31169.0,0.0968]
[1609855425526,0.12798,31220.0,31163.0,0.12947]
[1609855425724,0.13632608,31209.0,31206.0,0.13632608]
[1609855425924,0.10669,31227.0,31206.0,0.13632608]
[1609855426324,0.48054774,31236.0,31206.0,0.24564608]
[1609855427328,4.8686,31250.0,31206.0,0.24564608]
[1609855427725,0.47843125,31253.0,31206.0,0.24564608]
[1609855427726,0.47843125,31253.0,31230.0,0.13632608]
[1609855428728,0.47588177,31261.0,31230.0,0.77452608]
[1609855429331,0.88817521,31273.0,31230.0,0.77452608]
[1609855429332,0.65552591,31289.0,31230.0,0.77452608]
[1609855429729,0.13632608,31246.0,31239.0,0.13632608]
[1609855430130,0.13632608,31246.0,31230.0,0.6382]
[1609855431531,0.11608,31249.0,31230.0,0.6382]
[1609855431730,0.11608,31249.0,31245.0,0.13632608]
[1609855432630,0.13605,31256.0,31245.0,0.13632608]
[1609855433731,0.13605,31256.0,31255.0,0.13632608]
[1609855434331,0.13605,31256.0,31239.0,0.09804]
[1609855434933,0.13632608,31260.0,31239.0,0.09804]
[1609855435732,0.13632608,31260.0,31259.0,0.13632608]
[1609855436333,0.13632608,31260.0,31246.0,0.1093]
[1609855436736,0.09804,31261.0,31246.0,0.1093]
[1609855437136,0.1771,31289.0,31246.0,0.1093]
[1609855437735,0.13632608,31267.0,31266.0,0.13632608]
[1609855437936,0.13632608,31267.0,31246.0,0.1093]
[1609855439738,0.10932,31269.0,31251.0,0.13632608]
[1609855440438,0.10932,31269.0,31239.0,0.09804]
[1609855440639,0.10932,31269.0,31233.0,0.2825]
[1609855440838,0.1771,31268.0,31233.0,0.2825]
[1609855441337,0.1771,31268.0,31224.0,3.74152]
[1609855441338,0.822,31268.0,31224.0,3.74152]
[1609855441838,0.822,31268.0,31232.0,0.13632608]
[1609855443040,0.822,31268.0,31189.0,0.2945]
[1609855443041,0.1771,31268.0,31216.0,0.0992]
[1609855443240,5.3773,31260.0,31216.0,0.0992]
[1609855443440,5.50467,31260.0,31216.0,0.0992]
[1609855443843,0.13632608,31217.0,31216.0,0.0992]
[1609855444041,0.13632608,31217.0,31213.0,0.13632608]
[1609855446145,0.13632608,31217.0,31190.0,3.9613]
[1609855446345,0.13632608,31217.0,31189.0,0.2945]
[1609855446545,0.23326608,31217.0,31189.0,0.2945]
[1609855446747,0.23326608,31217.0,31168.0,7.04574339]
[1609855447545,0.23326608,31217.0,31163.0,0.2764]
[1609855447546,0.23326608,31217.0,31164.0,2.09217195]
[1609855447746,0.09694,31217.0,31216.0,0.13632608]
[1609855448555,0.12257,31226.0,31216.0,0.13632608]
[1609855449155,0.2739,31251.0,31216.0,0.13632608]
[1609855449350,0.2739,31251.0,31215.0,0.09758]
[1609855449545,0.38703,31251.0,31215.0,0.09758]
[1609855449758,0.13632608,31216.0,31215.0,0.23390608]
[1609855450145,0.13632608,31216.0,31215.0,0.13632608]
[1609855450360,0.13632608,31216.0,31206.0,0.14283]
[1609855450745,0.13632608,31216.0,31199.0,0.12167]
[1609855451546,0.13632608,31216.0,31177.0,3.9194]
[1609855451747,0.10357,31220.0,31195.0,0.13632608]
[1609855452349,0.10357,31220.0,31184.0,0.13701]
[1609855453748,0.13632608,31204.0,31195.0,0.13632608]
[1609855454048,0.25714608,31204.0,31195.0,0.13632608]
[1609855454248,0.25714608,31204.0,31184.0,0.13701]
[1609855455751,0.12082,31204.0,31203.0,0.13632608]
[1609855456354,0.10357,31220.0,31203.0,0.13632608]
[1609855456553,0.10904,31228.0,31203.0,0.13632608]
[1609855457054,0.48370973,31239.0,31203.0,0.13632608]
[1609855457253,0.48370973,31239.0,31203.0,0.28598608]
[1609855457453,0.48370973,31239.0,31203.0,0.14966]
[1609855457854,0.48370973,31239.0,31208.0,0.13632608]
[1609855458055,0.48370973,31239.0,31203.0,0.14966]
[1609855458254,0.0964,31238.0,31192.0,0.2709]
[1609855458753,0.58369973,31239.0,31192.0,0.2709]
[1609855459754,0.58369973,31239.0,31208.0,0.13632608]
[1609855459954,0.58369973,31239.0,31192.0,0.2709]
[1609855460957,0.09999,31239.0,31192.0,0.2709]
[1609855461865,0.13632608,31233.0,31230.0,0.13632608]
[1609855462459,0.13632608,31233.0,31210.0,4.9058]
[1609855463862,0.13632608,31222.0,31212.0,0.13632608]
[1609855465864,0.10662,31229.0,31221.0,0.13632608]
[1609855466461,0.09999,31239.0,31221.0,0.13632608]
[1609855466662,0.59966599,31251.0,31221.0,0.13632608]
[1609855467062,0.59966599,31251.0,31221.0,0.78042608]
[1609855467264,0.11313,31251.0,31221.0,0.78042608]
[1609855467463,0.48766856,31252.0,31221.0,0.78042608]
[1609855467662,0.48766856,31252.0,31221.0,0.13632608]
[1609855467863,0.48766856,31252.0,31244.0,0.13632608]
[1609855468064,0.48948439,31260.0,31244.0,0.13632608]
[1609855468263,0.48948439,31260.0,31224.0,0.13715]
[1609855468466,0.58501439,31260.0,31224.0,0.13715]
[1609855468664,0.09553,31260.0,31224.0,0.13715]
[1609855469867,0.13632608,31237.0,31236.0,0.13632608]
[1609855470268,0.13615,31241.0,31236.0,0.13632608]
[1609855470467,0.13615,31241.0,31224.0,0.13715]
[1609855472771,0.13632608,31243.0,31225.0,0.6038]
[1609855472973,0.10463,31249.0,31216.0,0.2702]
[1609855473170,0.10463,31249.0,31224.0,0.1335]
[1609855473971,0.13632608,31243.0,31242.0,0.13632608]
[1609855474470,0.10463,31249.0,31242.0,0.13632608]
[1609855475974,0.13632608,31243.0,31242.0,0.13632608]
[1609855476374,0.13632608,31243.0,31231.0,0.12732]
[1609855476573,0.13632608,31243.0,31224.0,0.1335]
[1609855477975,0.10463,31249.0,31242.0,0.13632608]
[1609855478176,0.09553,31260.0,31242.0,0.13632608]
[1609855478377,0.48985097,31262.0,31242.0,0.13632608]
[1609855479975,0.48985097,31262.0,31251.0,0.13632608]
[1609855480776,0.48985097,31262.0,31237.0,3.6154]
[1609855480977,0.59989097,31262.0,31237.0,3.6154]
[1609855481579,0.11004,31262.0,31237.0,3.6154]
[1609855481978,0.13632608,31238.0,31237.0,3.6154]
[1609855482178,0.28105608,31238.0,31216.0,0.2702]
[1609855483885,0.28105608,31238.0,31233.0,0.13632608]
[1609855484483,0.14473,31238.0,31233.0,0.13632608]
[1609855485885,0.13632608,31234.0,31233.0,0.13632608]
[1609855486886,0.14473,31238.0,31233.0,0.13632608]
[1609855487285,0.72644486,31266.0,31233.0,0.13632608]
[1609855487885,0.13632608,31242.0,31241.0,0.13632608]
[1609855489089,0.13632608,31242.0,31233.0,4.7788]
[1609855490086,0.13632608,31238.0,31236.0,0.13632608]
[1609855495291,0.13632608,31238.0,31223.0,0.12272]
[1609855495693,0.13632608,31238.0,31222.0,5.238]
[1609855496095,0.09843,31243.0,31236.0,0.13632608]
[1609855496493,0.51391177,31259.0,31240.0,3.7152]
[1609855497097,0.01673419,31258.0,31240.0,3.7152]
[1609855497895,0.11393419,31258.0,31240.0,3.7152]
[1609855498096,0.13632608,31241.0,31240.0,3.85152608]
[1609855498296,0.13632608,31241.0,31240.0,0.13632608]
[1609855498495,0.26785608,31241.0,31230.0,4.648]
[1609855500195,0.26785608,31241.0,31237.0,0.13632608]
[1609855501795,0.13153,31241.0,31237.0,0.13632608]
[1609855501995,0.13153,31241.0,31240.0,5.1742]
[1609855502796,0.01673419,31258.0,31240.0,5.1742]
[1609855503197,0.13632608,31260.0,31240.0,5.1742]
[1609855503397,0.0967,31259.0,31240.0,5.1742]
[1609855503596,0.13632608,31260.0,31240.0,5.1742]
[1609855504196,0.13632608,31260.0,31257.0,0.13632608]
[1609855505599,0.11004,31262.0,31257.0,0.13632608]
[1609855505799,0.51689051,31277.0,31257.0,0.13632608]
[1609855506200,0.51689051,31277.0,31267.0,0.13632608]
[1609855506804,0.51717855,31279.0,31267.0,0.13632608]
[1609855507204,0.51717855,31279.0,31270.0,5.1137]
[1609855508203,0.51717855,31279.0,31278.0,0.89842608]
[1609855508404,0.00747855,31279.0,31278.0,0.89842608]
[1609855509405,0.73375331,31283.0,31278.0,0.89842608]
[1609855509805,0.73375331,31283.0,31278.0,1.04555608]
[1609855510206,0.72535331,31283.0,31282.0,0.13632608]
[1609855511208,0.72535331,31283.0,31282.0,3.87872608]
[1609855511409,0.72535331,31283.0,31282.0,0.23172608]
[1609855512009,0.72535331,31283.0,31282.0,0.13632608]
[1609855513514,0.72535331,31283.0,31282.0,0.90042608]
[1609855514013,0.72535331,31283.0,31282.0,0.99622608]
[1609855514213,0.70625331,31283.0,31282.0,0.99622608]
[1609855515215,0.68705331,31283.0,31282.0,0.99622608]
[1609855515413,0.67415331,31283.0,31282.0,0.99622608]
[1609855515614,0.66725331,31283.0,31282.0,0.99622608]
[1609855515817,0.61975331,31283.0,31282.0,0.99622608]
[1609855516016,0.58685331,31283.0,31282.0,0.99622608]
[1609855516717,0.58685331,31283.0,31282.0,0.90042608]
[1609855517319,0.83572032,31296.0,31282.0,0.90042608]
[1609855518119,0.83572032,31296.0,31295.0,0.13632608]
[1609855518419,0.83572032,31296.0,31295.0,0.76212608]
[1609855518620,0.09245,31298.0,31295.0,0.76212608]
[1609855520522,0.0954,31322.0,31295.0,0.76212608]
[1609855521824,0.0954,31322.0,31295.0,0.13632608]
[1609855522025,0.0954,31322.0,31297.0,3.8944]
[1609855522224,0.28295608,31301.0,31297.0,3.8944]
[1609855523328,0.28295608,31301.0,31295.0,0.13632608]
[1609855524228,0.13632608,31296.0,31287.0,3.9985]
[1609855525828,0.13632608,31296.0,31267.0,0.3864]
[1609855526028,0.14663,31301.0,31267.0,0.3864]
[1609855526229,0.13632608,31300.0,31294.0,0.13632608]
[1609855526828,0.14663,31301.0,31294.0,0.13632608]
[1609855527328,3.9561,31319.0,31294.0,0.13632608]
[1609855527728,0.097,31315.0,31294.0,0.13632608]
[1609855527928,3.9561,31319.0,31294.0,0.13632608]
[1609855528132,0.13632608,31306.0,31298.0,0.13632608]
[1609855528530,0.26021608,31306.0,31298.0,0.13632608]
[1609855530030,0.26021608,31306.0,31300.0,4.852]
[1609855530230,0.26021608,31306.0,31305.0,0.13632608]
[1609855531532,0.12389,31306.0,31305.0,0.13632608]
[1609855533534,0.2772,31310.0,31305.0,0.13632608]
[1609855533933,0.0946,31309.0,31305.0,0.13632608]
[1609855534334,0.14059,31309.0,31305.0,0.13632608]
[1609855539137,0.00999,31309.0,31305.0,0.13632608]
[1609855539335,0.2794,31337.0,31305.0,0.13632608]
[1609855540139,0.0954,31336.0,31305.0,0.13632608]
[1609855540338,0.13632608,31329.0,31325.0,0.13632608]
[1609855540538,0.23778608,31329.0,31325.0,0.13632608]
[1609855540937,0.0948,31328.0,31325.0,0.13632608]
[1609855541138,0.23778608,31329.0,31325.0,0.13632608]
[1609855542240,0.10146,31329.0,31325.0,0.13632608]
[1609855545644,0.6407,31396.0,31325.0,0.13632608]
[1609855545843,0.14741,31329.0,31325.0,0.13632608]
[1609855546043,0.14741,31329.0,31328.0,4.0485]
[1609855547044,0.2859,31361.0,31328.0,4.0485]
[1609855547245,0.2859,31361.0,31329.0,0.0971]
[1609855547444,0.2859,31361.0,31328.0,4.0485]
[1609855547645,0.096,31364.0,31328.0,4.0485]
[1609855547847,0.0947,31371.0,31325.0,0.13632608]
[1609855548045,0.0952,31364.0,31342.0,4.1873]
[1609855548244,0.0952,31364.0,31363.0,0.13632608]
[1609855548645,0.0952,31364.0,31342.0,4.1873]
[1609855549648,0.1907,31364.0,31342.0,4.1873]
[1609855549849,0.0946,31363.0,31342.0,4.1873]
[1609855550251,0.0946,31363.0,31355.0,0.13632608]
[1609855550449,0.0952,31364.0,31355.0,0.13632608]
[1609855550650,0.0952,31364.0,31356.0,0.6868]
[1609855551050,0.0952,31364.0,31331.0,0.12232]
[1609855551449,0.0952,31363.0,31331.0,0.12232]
[1609855551850,0.0952,31363.0,31325.0,3.9504]
[1609855552250,0.13632608,31332.0,31331.0,0.13632608]
[1609855552451,0.28641608,31332.0,31331.0,0.13632608]
[1609855553050,0.28641608,31332.0,31315.0,0.10574]
[1609855553264,0.28641608,31332.0,31315.0,4.1169]
[1609855553456,0.38251608,31332.0,31315.0,4.0212]
[1609855554058,0.28641608,31332.0,31309.0,0.297]
[1609855554260,0.15009,31332.0,31317.0,0.13632608]
[1609855554454,0.15009,31332.0,31318.0,0.0952]
[1609855554655,0.15009,31332.0,31319.0,0.0963]
[1609855554855,0.15009,31332.0,31317.0,0.13632608]
[1609855555052,0.0963,31331.0,31317.0,0.13632608]
[1609855555252,0.0963,31331.0,31308.0,0.12736]
[1609855555456,0.15009,31332.0,31296.0,0.2953]
[1609855555859,0.15009,31332.0,31296.0,0.41315]
[1609855556059,0.15009,31332.0,31297.0,0.0958]
[1609855556255,0.15009,31332.0,31325.0,0.13632608]
[1609855557457,0.0968,31345.0,31325.0,0.13632608]
[1609855557857,4.7161,31357.0,31325.0,0.13632608]
[1609855558255,0.13632608,31326.0,31323.0,0.13632608]
[1609855558454,4.7161,31357.0,31323.0,0.13632608]
[1609855560355,4.7161,31357.0,31333.0,0.13632608]
[1609855560556,0.0956,31355.0,31333.0,0.13632608]
[1609855561455,0.0956,31355.0,31316.0,0.12285]
[1609855561658,0.3699,31351.0,31316.0,0.12285]
[1609855561856,0.51889,31351.0,31316.0,0.12285]
[1609855562256,0.13632608,31330.0,31329.0,0.13632608]
[1609855562456,0.23282608,31330.0,31329.0,0.13632608]
[1609855563056,0.23282608,31330.0,31316.0,0.12285]
[1609855563457,0.13632608,31330.0,31316.0,0.12285]
[1609855563858,0.13632608,31330.0,31297.0,3.7471]
[1609855564257,0.13632608,31306.0,31305.0,0.13632608]
[1609855564659,0.13632608,31306.0,31296.0,0.41315]
[1609855564857,0.13632608,31306.0,31296.0,0.11785]
[1609855565058,0.13632608,31306.0,31288.0,2.10151562]
[1609855565658,0.0956,31305.0,31288.0,2.10151562]
[1609855566060,0.0956,31305.0,31280.0,2.40125866]
[1609855566258,0.13632608,31286.0,31280.0,2.40125866]
[1609855566661,0.13632608,31286.0,31280.0,0.2901]
[1609855566858,0.13632608,31286.0,31277.0,0.13632608]
[1609855568261,0.13632608,31286.0,31269.0,2.11160921]
[1609855568262,0.13632608,31278.0,31273.0,0.13632608]
[1609855568862,0.22710608,31278.0,31261.0,2.11912479]
[1609855569764,0.22710608,31278.0,31260.0,2.11914156]
[1609855570361,0.09078,31278.0,31271.0,0.13632608]
[1609855570962,0.09078,31278.0,31259.0,2.11947534]
[1609855571464,0.09078,31278.0,31255.0,0.14479]
[1609855572265,0.09078,31278.0,31266.0,0.13632608]
[1609855573765,0.14241,31288.0,31266.0,0.13632608]
[1609855573964,0.14241,31288.0,31255.0,0.14479]
[1609855574165,0.0957,31289.0,31255.0,0.14479]
[1609855574364,0.0957,31289.0,31265.0,0.13632608]
[1609855575266,0.0957,31289.0,31255.0,0.14479]
[1609855575667,0.20824,31289.0,31248.0,2.11481402]
[1609855576368,0.20824,31289.0,31266.0,0.13632608]
[1609855577168,0.20824,31289.0,31250.0,0.12596]
[1609855577569,0.5888,31288.0,31250.0,0.12596]
[1609855578469,0.5888,31288.0,31256.0,0.13632608]
[1609855578870,0.5888,31288.0,31250.0,0.12596]
[1609855579072,0.5888,31288.0,31250.0,2.24128877]
[1609855579875,0.5888,31288.0,31250.0,0.12596]
[1609855580471,0.5888,31288.0,31262.0,0.13632608]
[1609855581673,0.11254,31289.0,31262.0,0.13632608]
[1609855581876,0.59522993,31310.0,31262.0,0.13632608]
[1609855582275,0.13632608,31292.0,31288.0,0.13632608]
[1609855582475,0.24868608,31292.0,31288.0,0.13632608]
[1609855582875,0.11236,31292.0,31288.0,0.13632608]
[1609855583475,0.14705,31300.0,31288.0,0.13632608]
[1609855584275,0.14705,31300.0,31295.0,0.13632608]
[1609855586476,0.14705,31300.0,31299.0,0.13632608]
[1609855586676,0.13632608,31304.0,31299.0,0.13632608]
[1609855588478,0.13632608,31300.0,31295.0,0.13632608]
[1609855590478,0.13632608,31296.0,31295.0,0.13632608]
[1609855592787,0.09495,31304.0,31295.0,0.13632608]
[1609855593585,0.2807,31320.0,31295.0,0.13632608]
[1609855594387,0.13632608,31314.0,31313.0,0.13632608]
[1609855594586,0.28109608,31314.0,31313.0,0.13632608]
[1609855600189,0.14477,31314.0,31313.0,0.13632608]
[1609855600389,0.13632608,31322.0,31313.0,0.13632608]
[1609855602389,0.13632608,31314.0,31313.0,0.13632608]
[1609855602589,0.24851608,31314.0,31298.0,3.6755]
[1609855604491,0.11219,31314.0,31307.0,0.13632608]
[1609855606394,0.11219,31314.0,31312.0,0.13632608]
[1609855606995,0.11219,31314.0,31298.0,3.6755]
[1609855607794,0.0955,31337.0,31298.0,3.6755]
[1609855608395,0.0955,31337.0,31307.0,0.13632608]
[1609855610396,0.0955,31337.0,31314.0,0.13632608]
[1609855611198,0.2704,31340.0,31314.0,0.13632608]
[1609855612499,0.2704,31340.0,31306.0,0.2727]
[1609855612700,0.38821,31340.0,31306.0,0.2727]
[1609855614501,0.13632608,31326.0,31324.0,0.13632608]
[1609855614703,0.27138608,31326.0,31324.0,0.13632608]
[1609855622515,0.27138608,31326.0,31308.0,0.13239]
[1609855623114,0.27138608,31326.0,31306.0,0.2727]
[1609855623713,0.27138608,31326.0,31297.0,2.11330008]
[1609855624117,4.51,31321.0,31297.0,2.11330008]
[1609855624515,0.13632608,31298.0,31297.0,2.11330008]
[1609855625116,0.13632608,31298.0,31284.0,2.88422647]
[1609855625117,0.13632608,31298.0,31296.0,2.11647512]
[1609855625717,0.10786,31303.0,31296.0,2.11647512]
[1609855626517,0.10786,31303.0,31302.0,0.13632608]
[1609855628320,0.10786,31303.0,31284.0,6.03213991]
[1609855628520,0.13632608,31297.0,31295.0,0.13632608]
[1609855629620,0.0965,31315.0,31295.0,0.13632608]
[1609855629819,0.2947,31318.0,31295.0,0.13632608]
[1609855630424,0.2947,31318.0,31305.0,0.13632608]
[1609855632424,0.13632608,31310.0,31305.0,0.13632608]
[1609855632625,0.23064608,31310.0,31305.0,0.13632608]
[1609855633826,0.23064608,31310.0,31294.0,3.9473]
[1609855634426,0.13632608,31301.0,31300.0,0.13632608]
[1609855634626,0.24374608,31301.0,31300.0,0.13632608]
[1609855634827,0.24374608,31301.0,31284.0,2.60705137]
[1609855634828,0.24374608,31301.0,31285.0,2.11927533]
[1609855635427,0.24374608,31301.0,31284.0,0.2983]
[1609855636528,0.10742,31301.0,31292.0,0.13632608]
[1609855638429,0.13632608,31293.0,31292.0,0.13632608]
[1609855638630,0.25216608,31293.0,31292.0,0.13632608]
[1609855640632,0.25216608,31293.0,31284.0,0.2983]
[1609855640835,0.25216608,31293.0,31280.0,2.1249568]
[1609855642439,0.11584,31293.0,31285.0,0.13632608]
[1609855642639,0.11584,31293.0,31285.0,2.27192388]
[1609855643738,0.10742,31301.0,31285.0,2.27192388]
[1609855643939,0.0954,31307.0,31285.0,2.27192388]
[1609855644442,0.13632608,31289.0,31285.0,2.27192388]
[1609855645042,0.09326,31290.0,31285.0,0.13632608]
[1609855646442,0.09326,31290.0,31289.0,0.13632608]
[1609855649743,0.13632608,31296.0,31289.0,0.13632608]
[1609855651745,4.65632,31310.0,31289.0,0.13632608]
[1609855652648,0.09432,31310.0,31302.0,0.13632608]
[1609855653048,0.2947,31318.0,31302.0,0.13632608]
[1609855653450,0.2947,31318.0,31295.0,4.9542]
[1609855653851,0.41056,31318.0,31295.0,4.9542]
[1609855654552,0.13632608,31305.0,31304.0,0.13632608]
[1609855654753,0.27031608,31305.0,31304.0,0.13632608]
[1609855657053,0.36751608,31305.0,31304.0,0.13632608]
[1609855657255,0.27031608,31305.0,31304.0,0.13632608]
[1609855666057,0.27031608,31305.0,31304.0,0.23132608]
[1609855666257,0.27031608,31305.0,31304.0,0.13632608]
[1609855667158,0.13399,31305.0,31304.0,5.05942608]
[1609855667357,0.11586,31318.0,31304.0,5.05942608]
[1609855667761,0.2951,31325.0,31304.0,5.05942608]
[1609855668160,0.2951,31325.0,31304.0,5.15642608]
[1609855668559,0.13632608,31321.0,31317.0,0.13632608]
[1609855668759,0.2951,31325.0,31317.0,0.13632608]
[1609855668959,0.2951,31325.0,31318.0,4.0663]
[1609855669160,0.13506,31326.0,31318.0,4.0663]
[1609855669561,0.2905,31345.0,31317.0,0.13632608]
[1609855670564,0.13632608,31333.0,31328.0,0.13632608]
[1609855670763,0.27100608,31333.0,31328.0,0.13632608]
[1609855671764,0.27100608,31333.0,31328.0,0.83372608]
[1609855671965,0.27100608,31333.0,31328.0,0.13632608]
[1609855672165,0.13468,31333.0,31329.0,4.4632]
[1609855672566,0.27100608,31333.0,31332.0,0.13632608]
[1609855673265,0.27100608,31333.0,31329.0,4.4632]
[1609855673466,0.27100608,31333.0,31319.0,0.1288]
[1609855673667,0.27100608,31333.0,31319.0,4.4218]
[1609855674568,0.13632608,31328.0,31325.0,0.13632608]
[1609855675770,0.13468,31333.0,31325.0,0.13632608]
[1609855675969,0.0958,31349.0,31325.0,0.13632608]
[1609855676471,3.9327,31353.0,31325.0,0.13632608]
[1609855676672,0.13632608,31326.0,31325.0,0.13632608]
[1609855677272,0.13446,31331.0,31325.0,0.13632608]
[1609855678574,0.13446,31331.0,31330.0,0.13632608]
[1609855679774,0.13446,31331.0,31320.0,0.2722]
[1609855680175,1.63446,31331.0,31311.0,2.126474]
[1609855680574,0.13446,31331.0,31311.0,2.126474]
[1609855680776,0.13446,31331.0,31317.0,0.13632608]
[1609855682075,1.5948,31338.0,31317.0,0.13632608]
[1609855682575,0.0948,31338.0,31317.0,0.13632608]
[1609855682775,0.13632608,31318.0,31317.0,0.13632608]
[1609855683176,0.13683,31319.0,31317.0,0.13632608]
[1609855684179,0.14522,31326.0,31317.0,0.13632608]
[1609855684779,0.13632608,31320.0,31317.0,0.13632608]
[1609855684978,0.14522,31326.0,31317.0,0.13632608]
[1609855686679,0.13632608,31318.0,31317.0,0.13632608]
[1609855687078,0.14522,31326.0,31317.0,0.13632608]
[1609855688379,0.097,31330.0,31317.0,0.13632608]
[1609855688583,0.2873,31338.0,31317.0,0.13632608]
[1609855688781,0.13632608,31320.0,31317.0,0.13632608]
[1609855689980,0.0969,31319.0,31317.0,0.13632608]
[1609855690180,0.13632608,31320.0,31317.0,0.13632608]
[1609855690381,0.13632608,31320.0,31310.0,5.2836]
[1609855690582,0.13632608,31320.0,31304.0,2.1238459]
[1609855690784,0.13632608,31307.0,31304.0,2.1238459]
[1609855693286,0.26493608,31307.0,31304.0,2.1238459]
[1609855693986,0.26493608,31307.0,31304.0,2.0589459]
[1609855694890,0.0969,31306.0,31304.0,2.0589459]
[1609855695289,0.0969,31306.0,31296.0,2.31859897]
[1609855696292,0.26493608,31307.0,31293.0,0.13632608]
[1609855696788,0.13632608,31294.0,31289.0,0.43032608]
[1609855696988,0.13632608,31294.0,31289.0,0.13632608]
[1609855697188,0.13632608,31294.0,31285.0,2.31929804]
[1609855698191,0.13632608,31294.0,31282.0,2.32011386]
[1609855698594,0.13632608,31294.0,31272.0,2.32090778]
[1609855698793,0.13632608,31273.0,31272.0,2.45723386]
[1609855700095,0.23322608,31273.0,31272.0,2.45723386]
[1609855700296,0.23322608,31273.0,31272.0,2.32090778]
[1609855700500,0.0969,31273.0,31267.0,2.32149643]
[1609855700695,0.13632608,31272.0,31269.0,0.13632608]
[1609855701696,0.095,31271.0,31269.0,0.13632608]
[1609855701896,0.13632608,31272.0,31269.0,0.13632608]
[1609855702597,0.11873,31273.0,31269.0,0.13632608]
[1609855703597,0.12861,31307.0,31272.0,4.2313]
[1609855703801,0.12861,31307.0,31273.0,0.0953]
[1609855703998,0.0966,31301.0,31273.0,0.0953]
[1609855704198,0.12861,31307.0,31273.0,0.0953]
[1609855704398,0.0965,31301.0,31273.0,0.0953]
[1609855704599,0.12861,31307.0,31283.0,5.0834]
[1609855704803,0.2907,31316.0,31280.0,0.09462]
[1609855705001,5.2499,31315.0,31280.0,0.09462]
[1609855705398,0.0958,31314.0,31280.0,0.09462]
[1609855705999,1.5958,31314.0,31276.0,2.12402048]
[1609855706199,1.5958,31314.0,31279.0,2.12417439]
[1609855706901,1.5958,31314.0,31287.0,0.13632608]
[1609855707618,4.2546,31301.0,31287.0,0.13632608]
[1609855708009,4.39726,31301.0,31287.0,0.13632608]
[1609855708809,0.13632608,31288.0,31287.0,0.13632608]
[1609855710812,0.23082608,31288.0,31287.0,0.13632608]
[1609855711014,0.13632608,31288.0,31287.0,0.13632608]
[1609855713716,0.13632608,31288.0,31272.0,0.2808]
[1609855714416,0.13632608,31288.0,31269.0,2.12217052]
[1609855714819,0.12427,31289.0,31272.0,0.13632608]